Cogmind - Beta 16.1 @@@ ROGUE MODE // 2026.02.22 @ 23:52:03 Player: AlmondRoll Result: Destroyed by D-53 Grenadier with Mini Grenade Launcher Performance ------------- Evolutions (0) 0 Regions Visited (2) 400 Robots Destroyed (25) 125 Value Destroyed (413) 413 Prototype IDs (0) 0 Alien Tech Used (0) 0 Bonus (0) 0 TOTAL SCORE: 938 Bonus ------- None Cogmind --------- Core Integrity 0/250 Matter 183/300 Energy 96/100 System Corruption 1% Temperature Cool (0) Movement Core (400) Ox7 Location -10/Mines Parts ------- > --- POWER (1) -------- (None) > --- PROPULSION (2) --- (None) > --- UTILITY (2) ------ Large Storage Unit Structural Scanner > --- WEAPON (2) ------- Light Assault Rifle Light Assault Rifle > --- INVENTORY (15) --- Ion Engine Compact Wheel Compact Wheel Improved Heat Sink Small Storage Unit Large Matter Pod (150) Hacking Suite EM Pulse Gun Light Assault Rifle Light Assault Rifle Light Cannon Grenade Launcher Peak State ------------ > --- POWER ------------ Light Nuclear Core > --- PROPULSION ------- Light Treads Light Treads > --- UTILITY ---------- Large Storage Unit Structural Scanner > --- WEAPON ----------- Light Assault Rifle Light Assault Rifle > --- INVENTORY -------- Ion Engine Ion Engine Light Treads Light Treads Compact Wheel Compact Wheel Improved Heat Sink Small Storage Unit Light Assault Rifle Light Cannon Grenade Launcher [Rating: 10] Favorites ----------- Power Light Nuclear Core Engine Ion Engine Power Core Light Nuclear Core Propulsion Light Treads Treads Light Treads Leg Aluminum Leg Utility Structural Scanner Device Structural Scanner Storage Large Storage Unit Weapon Light Assault Rifle Energy Gun Small Laser Ballistic Gun Light Assault Rifle Launcher Grenade Launcher Build | -11 -10 -10 ------- Run | Yrd Mat Min Slots Evolved . | . . . Power . | . . . Propulsion . | . . . Utility . | . . . Weapon . | . . . Parts Attached 13 | 2 7 4 Power 2 | . 1 1 Engine 1 | . . 1 Core 1 | . 1 . Reactor . | . . . Propulsion 4 | 2 1 1 Treads 4 | 2 1 1 Leg . | . . . Wheel . | . . . Hover . | . . . Flight . | . . . Utility 3 | . 3 . Device 2 | . 2 . Storage 1 | . 1 . Processor . | . . . Hackware . | . . . Protection . | . . . Artifact . | . . . Weapon 4 | . 2 2 Energy Gun . | . . . Energy Cannon . | . . . Ballistic Gun 3 | . 2 1 Ballistic Cannon . | . . . Launcher 1 | . . 1 Special Weapon . | . . . Impact Weapon . | . . . Slashing Weapon . | . . . Piercing Weapon . | . . . Special Melee Weapon . | . . . Unidentified Prototypes . | . . . Parts Lost 8 | . 2 6 Power 2 | . . 2 Propulsion 4 | . 1 3 Utility . | . . . Weapon 2 | . 1 1 Highest Loss Streak 6 | . 2 6 To Critical Strikes . | . . . Average Backups 10 | 4 9 14 Power 1 | 1 1 1 Propulsion 3 | 2 3 2 Utility 1 | . 1 3 Weapon 3 | 1 3 5 Tool/Special . | . . . Unused Backups 15 | . 4 11 Power 1 | . . 1 Propulsion 2 | . . 2 Utility 4 | . . 4 Weapon 8 | . 4 4 Tool/Special . | . . . Average Slot Usage (%) 99 | . 99 99 Engine 6 | . 7 . Core 7 | . 6 13 Treads 27 | . 28 27 Device 13 | . 13 14 Storage 14 | . 14 14 Ballistic Gun 27 | . 27 26 Peak Build Rating 10 | 6 10 10 Average Rating 8 | 5 8 9 On Entrance 7 | 6 6 10 Avg Prop Armor Cover (%) . | . . . Naked Turns . | . . . Heaviest Build 30 | 12 28 30 Greatest Support 40 | 40 40 40 Greatest Overweight (x) . | . . . Average Overweight (x) . | . . . Largest Inventory Capacity 15 | 8 15 15 Average Capacity 13 | 8 12 15 Most Carried 15 | 6 13 15 Average Carried 10 | 3 9 14 Final Capacity 15 | 8 15 15 Final Carried 13 | 4 13 12 Class Distribution -------------------- 52% | Scavenger-Mutant 47% | Mutant Dominant Class ---------------- Mutant | -10/Materials Scavenger-Mutant | -10/Mines Resources | -11 -10 -10 ----------- Run | Yrd Mat Min Matter Collected 601 | 223 358 20 Remotely . | . . . Salvage Created 921 | 81 800 40 Parts 55 | 2 50 3 Haulers Intercepted 2 | . 2 . Recyclers Shooed 5 | 1 3 1 Parts Field Recycled . | . . . Retrieved Matter . | . . . Parts Self-Destructed . | . . . Prevented . | . . . Parts Restored . | . . . Kills | -11 -10 -10 ------- Run | Yrd Mat Min Combat Hostiles Destroyed 26 | . 14 12 Guns 14 | . 14 . AOE 12 | . . 12 Classes Destroyed 8 | 1 6 1 Worker 1 | . 1 . Builder 2 | . 2 . Hauler 2 | . 2 . Recycler 4 | 1 3 . Operator 2 | . 1 1 Swarmer 6 | . 6 . Grunt 8 | . 8 . Assembled 12 | . . 12 Best Kill Streak 12 | 1 5 12 Combat Bots Only 12 | . 3 12 Max Kills in Single Turn 3 | 1 1 3 Gunslinging . | . . . Exploded 3 | . . 3 Melee . | . . . Uniques/NPCs Destroyed . | . . . Combat | -11 -10 -10 -------- Run | Yrd Mat Min Hostile Shots Fired 106 | . 75 31 Missed 28 | . 22 6 Hits 78 | . 53 25 Projectile 78 | . 53 25 AOE 15 | . . 15 Critical Strikes 4 | . 1 3 Damage Taken 1286 | . 547 739 Core 259 | . 84 175 Absorbed by Shields . | . . . Core Remaining (%) 100 | 100 . . Volleys Fired 95 | 3 75 17 Largest 2 | 2 2 2 Hottest 60 | 60 40 40 Shots Fired 182 | 6 151 25 Gun 173 | 6 151 16 Cannon . | . . . Launcher 9 | . . 9 Special . | . . . Kinetic 170 | 3 151 16 Thermal 3 | 3 . . Explosive 9 | . . 9 Electromagnetic . | . . . Robot Hit Streak 7 | 2 7 7 Robot Miss Streak 6 | 1 6 2 Penetration Max . | . . . Secondary Targets 4 | . 4 . Max Gunslinging Chain 1 | . 1 . Shots Hit Robots 112 | 4 94 14 Core Hits 86 | 2 49 35 Critical Kills 1 | . 1 . Critical Parts Destroyed 2 | . 2 . Critical Strikes 3 | . 3 . Destroy 3 | . 3 . Melee Attacks . | . . . Impact . | . . . Slashing . | . . . Piercing . | . . . Sneak Attacks . | . . . Combat Hostiles . | . . . Follow-up Attacks . | . . . Damage Inflicted 1786 | 39 802 945 Guns 898 | 39 785 74 Cannons . | . . . Explosions 867 | . . 867 Melee . | . . . Ramming 21 | . 17 4 Kinetic 875 | 16 785 74 Thermal 23 | 23 . . Explosive 867 | . . 867 Electromagnetic . | . . . Impact . | . . . Slashing . | . . . Piercing . | . . . Highest Corruption 1 | . 1 1 Average Corruption 1 | . 1 1 Corruption Purged . | . . . Corruption Blocked . | . . . Effects 12 | . 10 2 Message Errors 3 | . 2 1 Matter Fused 2 | . 1 1 Heat Flow Errors 2 | . 2 . Energy Discharges 2 | . 2 . Data Loss (minor) 1 | . 1 . Misfires 1 | . 1 . Alerts 1 | . 1 . Overload Shots . | . . . Overflow Damage 19 | . . 19 Projectiles . | . . . Explosions 19 | . . 19 Melee . | . . . Knockbacks . | . . . Impact . | . . . Kinetic . | . . . Secondary . | . . . Self-Inflicted Damage 12 | . . 12 Shots 1 | . . 1 Rammed 6 | . 4 2 Targets Rammed 6 | . 4 2 Kicked . | . . . Crushed . | . . . Highest Temperature 212 | 20 212 17 Average Temperature 23 | 13 26 6 Received Heat Transfer 248 | . 228 20 Siege Activations . | . . . Martial Activations . | . . . Shielding Activations . | . . . Robots Disrupted . | . . . Combat Hostiles . | . . . Robots Corrupted . | . . . Combat Hostiles . | . . . Parts Fried . | . . . Impact Corruptions . | . . . Robots Melted . | . . . Combat Hostiles . | . . . Parts Melted . | . . . Heat Transferred 50 | 50 . . Parts Sabotaged . | . . . Parts Stolen . | . . . Parts Stripped . | . . . Power Chain Reactions . | . . . Alert | -11 -10 -10 ------- Run | Yrd Mat Min Maximum Alert Level . | . . . Low Security (%) 100 | 100 100 100 Level 1 . | . . . Level 2 . | . . . Level 3 . | . . . Level 4 . | . . . Level 5 . | . . . High Security . | . . . Max Security . | . . . Peak Influence 163 | 5 163 16 Initial 12 | . . 12 Average 45 | 1 53 2 Influence Increases 436 | 5 405 26 Destroy 0b10 Robot/C 280 | . 280 . Destroy 0b10 Robot/NC 50 | 5 45 . Destroy Leader 64 | . 64 . Successful Hack 16 | . 16 . Destroy Structure 26 | . . 26 Influence Decreases 436 | 5 374 57 Entered New Map 19 | . . 19 Time Decay 397 | 5 354 38 Lost Part 20 | . 20 . Squads Dispatched 2 | . 2 . Investigation 1 | . 1 . Extermination . | . . . Reinforcement 1 | . 1 . Assault . | . . . Garrison . | . . . Intercept . | . . . Searches Triggered . | . . . Construction Impeded . | . . . Haulers Reinforced . | . . . Active Scanning Responses . | . . . Cargo Convoy Interrupts . | . . . Stealth | -11 -10 -10 --------- Run | Yrd Mat Min Distress Signals 1 | . 1 . Communications Jammed . | . . . Distress Signals . | . . . Times Spotted 47 | . 28 19 Peak Tracking Total 14 | . 5 14 Tactical Retreats . | . . . Traps | -11 -10 -10 ------- Run | Yrd Mat Min Traps Triggered 1 | . 1 . Indirectly . | . . . Trap Hack Attempts . | . . . Triggered . | . . . Disarmed 1 | . 1 . Reprogrammed . | . . . Reused . | . . . Traps Extracted . | . . . Installed . | . . . Triggered . | . . . Machines | -11 -10 -10 ---------- Run | Yrd Mat Min Machines Disabled . | . . . Max in Single Turn . | . . . Machines Repaired . | . . . Machines Dismantled . | . . . Machines Sabotaged . | . . . Overloaded Fab Kills . | . . . Hacking | -11 -10 -10 --------- Run | Yrd Mat Min Machines Accessed 8 | . 8 . Terminals 6 | . 6 . Fabricators . | . . . Repair Stations . | . . . Recycling Units 2 | . 2 . Scanalyzers . | . . . Garrison Access . | . . . Total Hacks 24 | . 24 . Successful 9 | . 9 . Failed 15 | . 15 . Catastrophic 2 | . 2 . Database Lockouts . | . . . Manual 16 | . 16 . Terminals 18 | . 18 . Fabricators . | . . . Repair Stations . | . . . Recycling Units 6 | . 6 . Scanalyzers . | . . . Garrison Access . | . . . Terminal Hacks 3 | . 3 . Robot Analysis 2 | . 2 . Disarm Traps 1 | . 1 . Fabricator Hacks . | . . . Repair Station Hacks . | . . . Recycling Unit Hacks 2 | . 2 . Retrieve Components 2 | . 2 . Scanalyzer . | . . . Garrison Access Hacks . | . . . Unauthorized Hacks 4 | . 4 . Terminals 3 | . 3 . Assimilate 1 | . 1 . Botnet 1 | . 1 . Operators 1 | . 1 . Fabricators . | . . . Repair Stations . | . . . Recycling Units 1 | . 1 . Reject 1 | . 1 . Scanalyzers . | . . . Garrison Access . | . . . Data Cores Recovered . | . . . Used . | . . . Hacking Detections 8 | . 8 . Full Trace Events 1 | . 1 . Feedback Events . | . . . Feedback Blocked . | . . . Robot Schematics Acquired . | . . . Robots Built . | . . . Authchips . | . . . Time . | . . . Total Robot Build Rating . | . . . Part Schematics Acquired . | . . . Parts Built . | . . . Authchips . | . . . Time . | . . . Total Part Build Rating . | . . . Part Studies Acquired . | . . . Parts Repaired . | . . . Time . | . . . Parts Recycled . | . . . Recycled Matter . | . . . Retrieved Matter . | . . . Retrieved Components 12 | . 12 . Parts Scanalyzed . | . . . Part Schematics Acquired . | . . . Parts Damaged . | . . . Bothacking | -11 -10 -10 ------------ Run | Yrd Mat Min Used RIF Installer . | . . . Robots Hacked . | . . . Non-combat . | . . . Combat . | . . . Robot Hacks Applied . | . . . Relay Couplers Released . | . . . Fabnet Peak Effective % . | . . . Robots Rewired . | . . . Allies Hacked . | . . . Hacks Repelled . | . . . Allies | -11 -10 -10 -------- Run | Yrd Mat Min Total Allies 1 | . 1 . Largest Group 1 | . 1 1 Highest-Rated Group 10 | . 10 10 Highest-Rated Ally 10 | . 10 10 Total Orders . | . . . Ally Attacks . | . . . Total Damage . | . . . Kills . | . . . Allies Corrupted . | . . . Allies Melted . | . . . Intel | -11 -10 -10 ------- Run | Yrd Mat Min Active Infowar (turns) 1670 | . 1434 236 Terrain 345 | . 345 . Structural 1325 | . 1089 236 Robot Analysis Total 2 | . 2 . Derelict Logs Recovered 1 | . . 1 Drone Launches . | . . . Drone Recoveries . | . . . Exploration | -11 -10 -10 ------------- Run | Yrd Mat Min Turns Passed 1718 | 23 1459 236 Spaces Moved 879 | 7 756 116 Core . | . . . Treads 879 | 7 756 116 Legs . | . . . Wheels . | . . . Hover . | . . . Flight . | . . . Fastest Speed 160 | 160 160 160 Average Speed 160 | 160 160 160 Slowest Speed 160 | 160 160 160 Overloaded Moves . | . . . Propulsion Burnouts . | . . . Robots Hopped . | . . . Potential Cave-ins . | . . . Cave-ins Triggered . | . . . Exploration Rate (%) 39 | 2 94 23 Regions Visited 2 Branch Regions 1 Pre-discovered Areas . | . . . Known Exits Taken . | . . . Unknown Exits Taken 2 | 1 1 . Scrap Searched . | . . . Spaces Dug . | . . . Terrain Destroyed 35 | . . 35 Melee . | . . . Projectile . | . . . AOE 35 | . . 35 Terrain Rammed . | . . . Walls Destroyed . | . . . Machines Disabled . | . . . Actions | -11 -10 -10 --------- Run | Yrd Mat Min Total 1040 | 15 882 143 Wait 28 | . 27 1 Move 877 | 6 755 116 Hop . | . . . Pick Up 13 | 1 11 1 Fast Attach 2 | . 2 . Attach 7 | 2 2 3 Detach . | . . . Swap 6 | . 3 3 Drop 6 | 3 3 . Fire 95 | 3 75 17 Melee . | . . . Ram . | . . . Kick . | . . . Crush 6 | . 4 2 Escape Stasis . | . . . Rewire . | . . . Trap . | . . . Miscellaneous . | . . . Route ------- -11/Scrapyard -10/Materials (discovered 5 exits: *Mat x3 / [*Min x2]) -10/Mines (discovered 2 exits: *Mat x2) History --------- Turn | Location | Event 13 | -11/Scrapyard | Discovered new exit (range 3) 24 | -11/Scrapyard | Entered Materials 327 | -10/Materials | Discovered new exit (range 13) 329 | -10/Materials | Build established: Mutant 414 | -10/Materials | Discovered new exit (range 7) 420 | -10/Materials | Discovered new exit (range 10) 1047 | -10/Materials | Discovered new exit (range 5) 1120 | -10/Materials | Build established: Scavenger-Mutant 1164 | -10/Materials | Discovered new exit (range 9) 1483 | -10/Materials | Entered Mines 1483 | -10/Mines | Accompanied by 1 ally 1484 | -10/Mines | Met a Derelict bent on vengeance 1509 | -10/Mines | Identified exit to Materials 1531 | -10/Mines | Discovered exit to Materials (range 4) 1622 | -10/Mines | Assembled infested the area 1676 | -10/Mines | Destroyed 12 combat bots 1714 | -10/Mines | Core integrity fell below 50% 1718 | -10/Mines | Core integrity fell below 20% 1719 | -10/Mines | Destroyed by D-53 Grenadier with Mini Grenade Launcher Last Messages --------------- 01651_ as-36655 destroyed. 01651_ as-20084 destroyed. 01651_ as-27467 destroyed. 01653_ Destroyed Asb. Hover Unit. 01653_ as-42922 destroyed. 01653_ as-80262 destroyed. 01655_ The unstable cave ceiling collapses. 01655_ as-51793 destroyed. 01655_ as-12870 destroyed. 01655_ as-67864 destroyed. 01656_ System corrupted: Matter fused (-6). 01693_ 30KNTA<4>Z897IRAQGYFHBF2A7<|,2D9 01707_ Lgt. Treads destroyed. 01707_ Lgt. Nuclear Core destroyed. 01709_ Lgt. Treads destroyed. 01712_ The unstable cave ceiling collapses. 01713_ Ion Engine destroyed. 01713_ Lgt. Assault Rifle destroyed. 01714_ The unstable cave ceiling collapses. 01717_ Lgt. Treads destroyed. Map ----- +----------------------------------------------------+ | ?????????????????????????????????????????????????? | | ?????????????????????????????????????????????????? | | ?????????????????????????????????????????????????? | | ?????????????????????????????????????????????????? | | ???????????????????????????????????????###???????? | | ???????????????????????????????????????###???????? | | ??????????????????????????????????????? #???????? | | ?????????????????????????????????????? ##??????? | | ??????????????????????????????????????## ##??????? | | ??????????????????????????????????????## ##??????? | | ??????????????????????????????????????## ##??????? | | ?????????????????????????????????####### ##??????? | | ????????????????????????????????######## ##??????? | | ????????????????????????????????### ### ##??????? | | ????????????????????????????????## ## ##??????? | | ???????????????????????????????### ## ##??????? | | ???????????????????????